Cogmind - Beta 14 @@@ ROGUE MODE // 2025.03.20 @ 11:12:00 Player: Anting Result: Destroyed by EQ-000 with Nova Cannon Performance ------------- Evolutions (9) 4500 Regions Visited (27) 5400 Robots Destroyed (66) 330 Value Destroyed (2117) 2117 Prototype IDs (245) 4900 Alien Tech Used (0) 0 Bonus (23038) 23038 TOTAL SCORE: 40285 Bonus ------- Pacifist 270 High Alert Combat Kills 6 Follower Combat Kills 2085 Network Hubs Disabled 200 Aligned with FarCom 300 Met Data Miner 300 Used Data Conduit 3000 Met Warlord at Base 500 MAIN.C Attacked Warlord 500 Built Enhanced Grunts 300 Met R17 at Cetus 500 Met R17 at Research 2000 Met Warlord at Research 2000 Pursued by Intercept 500 Destroyed MAIN.C Guards 500 Met MAIN.C 5000 Destroyed MAIN.C Shell 5000 Met Warlord at Command 2000 Friendly Fire -1923 Cogmind --------- Core Integrity 0/1600 Matter 62/300 Energy 42/100 System Corruption 12% Temperature Cool (9) Movement Walking (120) Location -1/Command Parts ------- > --- POWER (2) -------- (None) > --- PROPULSION (8) --- Experimental Biometal Medium Treads High-density Centrium Leg High-density Centrium Leg High-density Centrium Leg High-density Centrium Leg > --- UTILITY (13) ----- Power Amplifier Experimental Melee Analysis Suite Improved Armor Integrity Analyzer Experimental System Purifier > --- WEAPON (2) ------- Heavy Hardcell Cannon > --- INVENTORY (5) ---- Vortex Chain Reactor Enhanced Nova Cannon Enhanced Nova Cannon Null Cannon Peak State ------------ > --- POWER ------------ Micro Antimatter Reactor Light Quantum Reactor > --- PROPULSION ------- Cooled VTOL Module Cooled VTOL Module Cooled VTOL Module Cooled VTOL Module Nuclear Pulse Array Impulse Thruster Array > --- UTILITY ---------- Experimental Melee Analysis Suite Experimental Core Analyzer Improved Armor Integrity Analyzer Improved Armor Integrity Analyzer Femtoactuators Improved Force Booster Advanced Reaction Control System Experimental Propulsion Shielding Centrium Medium Armor Plating Improved Hacking Suite Improved Hacking Suite System Mapper Improved System Shield > --- WEAPON ----------- Centrium Greatsword > --- INVENTORY -------- Authchip [Weapon] Vortex Catalyst Activator [Rating: 178] Favorites ----------- Power Light Quantum Reactor Engine Light Deuterium Engine Power Core Fission Core Reactor Light Quantum Reactor Propulsion Cooled VTOL Module Treads Light Treads Leg Aluminum Leg Flight Unit Cooled VTOL Module Utility Hacking Suite Device Advanced Sensor Array Storage Large Storage Unit Processor Improved Signal Interpreter Hackware Hacking Suite Protection Centrium Medium Armor Plating Weapon Spear Energy Gun Medium Laser Energy Cannon Vortex Driver Ballistic Gun Gauss Rifle Ballistic Cannon Heavy Hardcell Cannon Launcher Micro-nuke Launcher Impact Weapon Heavy Flail Slashing Weapon Phasing Sabre Piercing Weapon Spear Special Melee Weapon Datajack Build | -11 -10 -10 -10 -9 -8 -7 -7 -7 -6 -6 -6 -6 -5 -5 -5 -5 -5 -4 -4 -4 -4 -4 -4 -3 -2 -1 -1 ------- Run | Yrd Mat Min Exi Min Mat Fac Was Fac Fac Low Low Dat Pro Fac Upp Upp War Pro Fac Ext Cet Arc Hub Res Res Acc Com Slots Evolved 18 | . . . . . 4 2 . . 2 . . . . 2 . . . . 2 . . . . 2 2 2 . Power 1 | . . . . . . . . . . . . . . . . . . . . . . . . 1 . . . Propulsion 6 | . . . . . 2 1 . . . . . . . 1 . . . . . . . . . 1 . 1 . Utility 11 | . . . . . 2 1 . . 2 . . . . 1 . . . . 2 . . . . . 2 1 . Weapon . | . . . . . . . . . . . . . . . . . . . . . . . . . . . . Parts Attached 177 | 5 . . . 4 23 18 4 4 9 2 . 1 . 3 1 . 5 . 3 10 2 5 1 13 8 10 46 Power 23 | 1 . . . 1 1 1 1 . 2 . . . . . . . . . 2 2 . . . 3 1 1 7 Engine 9 | 1 . . . 1 1 1 1 . 1 . . . . . . . . . 1 . . . . . . . 2 Core 2 | . . . . . . . . . 1 . . . . . . . . . . . . . . . . . 1 Reactor 12 | . . . . . . . . . . . . . . . . . . . 1 2 . . . 3 1 1 4 Propulsion 35 | 2 . . . 2 6 2 2 2 1 1 . . . 2 . . . . 1 2 . . . 4 . 1 7 Treads 3 | . . . . 2 . . . . . . . . . . . . . . . . . . . . . . 1 Leg 9 | 2 . . . . 2 . . . . . . . . . . . . . . . . . . . . . 5 Wheel . | . . . . . . . . . . . . . . . . . . . . . . . . . . . . Hover . | . . . . . . . . . . . . . . . . . . . . . . . . . . . . Flight 23 | . . . . . 4 2 2 2 1 1 . . . 2 . . . . 1 2 . . . 4 . 1 1 Utility 64 | 1 . . . . 6 7 1 1 4 1 . . . 1 1 . 1 . . 2 2 5 . 5 5 8 13 Device 21 | . . . . . 1 2 1 1 1 1 . . . 1 1 . . . . . . 1 . . 1 2 8 Storage 2 | 1 . . . . 1 . . . . . . . . . . . . . . . . . . . . . . Processor 13 | . . . . . 2 . . . 1 . . . . . . . . . . 1 . . . 2 2 2 3 Hackware 18 | . . . . . 1 5 . . 2 . . . . . . . 1 . . 1 . 4 . 1 . 3 . Protection 10 | . . . . . 1 . . . . . . . . . . . . . . . 2 . . 2 2 1 2 Artifact . | . . . . . . . . . . . . . . . . . . . . . . . . . . . . Weapon 55 | 1 . . . 1 10 8 . 1 2 . . 1 . . . . 4 . . 4 . . 1 1 2 . 19 Energy Gun 2 | 1 . . . . . . . . . . . . . . . . . . . . . . . . . . 1 Energy Cannon 6 | . . . . 1 . . . . . . . . . . . . 2 . . . . . 1 . . . 2 Ballistic Gun 8 | . . . . . 5 3 . . . . . . . . . . . . . . . . . . . . . Ballistic Cannon 2 | . . . . . . . . . . . . . . . . . . . . . . . . . . . 2 Launcher 12 | . . . . . 1 1 . . 1 . . . . . . . 1 . . . . . . 1 . . 7 Special Weapon . | . . . . . . . . . . . . . . . . . . . . . . . . . . . . Impact Weapon 5 | . . . . . 4 1 . . . . . . . . . . . . . . . . . . . . . Slashing Weapon 5 | . . . . . . 2 . . . . . . . . . . . . . 1 . . . . 2 . . Piercing Weapon 11 | . . . . . . . . 1 . . . 1 . . . . 1 . . 1 . . . . . . 7 Special Melee Weapon 4 | . . . . . . 1 . . 1 . . . . . . . . . . 2 . . . . . . . Unidentified Prototypes 8 | . . . . . 2 . . . . . . . . . . . 3 . . . . . . . . . 3 Parts Lost 45 | . . . . . 1 2 2 . 1 . . 1 . . . . . . 2 2 . . 1 2 . 2 29 Power 7 | . . . . . 1 . . . . . . . . . . . . . 1 . . . . 1 . 1 3 Propulsion 11 | . . . . . . . 2 . . . . . . . . . . . 1 1 . . 1 1 . . 5 Utility 22 | . . . . . . 2 . . 1 . . . . . . . . . . 1 . . . . . 1 17 Weapon 5 | . . . . . . . . . . . . 1 . . . . . . . . . . . . . . 4 Highest Loss Streak 17 | . . . . . 1 1 2 . 1 . . 1 . . . . . . 2 1 . . 1 1 . 1 17 To Critical Strikes . | . . . . . . . . . . . . . . . . . . . . . . . . . . . . Average Slot Usage (%) 86 | . 42 42 42 46 91 82 96 100 91 93 93 99 93 88 94 94 98 100 86 92 98 92 94 84 78 83 81 Engine 2 | . . . . 2 8 7 7 7 . . . . . . . . . . 2 . . . . . . . 2 Core 1 | . . . . . . . . . 5 6 6 6 6 5 5 5 5 5 1 . . . . . . . . Reactor 2 | . . . . . . . . . . . . . . . . . . . . 5 5 5 5 5 8 7 4 Treads 2 | . . . . 15 17 . . . . . . . . . . . . . . . . . . . . . . Leg 2 | . 28 28 28 13 13 . . . . . . . . . . . . . . . . . . . . . 2 Flight 24 | . . . . . 1 31 35 38 33 33 33 33 33 35 35 35 35 35 31 30 31 31 31 25 21 24 20 Device 5 | . . . . . 1 7 7 7 9 6 6 6 6 5 11 11 6 5 5 5 4 1 . . . 2 10 Processor 7 | . . . . . 9 2 . . . 6 6 6 6 5 5 5 5 5 5 5 9 5 5 6 9 12 18 Hackware 23 | . . . . . 6 21 30 30 31 33 33 33 33 29 29 29 33 35 31 34 31 33 36 31 26 24 9 Protection 4 | . . . . . 8 2 . . . . . . . . . . . . . . 5 10 10 7 6 7 8 Ballistic Gun 1 | . . . . . 13 . . . . . . . . . . . . . . . . . . . . . . Slashing Weapon 2 | . . . . . . 5 7 7 6 6 6 5 . . . . . . . 2 5 5 5 4 4 4 . Piercing Weapon 1 | . . . . . . . . 3 2 . . 6 6 5 5 5 4 5 5 2 . . . . . . 3 Peak Build Rating 178 | 4 3 3 4 8 39 42 48 48 55 59 58 61 57 66 67 67 82 82 82 88 98 105 113 136 162 171 178 Average Rating 81 | 2 3 3 3 4 26 36 42 45 52 58 58 60 57 62 67 67 78 82 77 81 93 100 105 117 144 163 158 On Entrance 63 | . 3 3 3 4 8 34 41 48 48 55 58 58 57 57 62 67 67 82 82 77 85 94 105 108 136 153 171 Naked Turns . | . . . . . . . . . . . . . . . . . . . . . . . . . . . . Heaviest Build 63 | 10 2 2 2 13 45 22 12 12 16 14 14 16 13 13 14 14 30 29 29 18 30 30 46 42 43 46 63 Greatest Support 128 | 20 3 3 3 40 49 25 25 30 31 31 25 31 31 38 30 38 30 38 30 38 38 30 30 50 44 57 128 Greatest Overweight (x) 4 | . . . . . 1 1 . . . . . . . . . . . . . 4 . . 1 1 . . 4 Average Overweight (x) . | . . . . . . . . . . . . . . . . . . . . . . . . . . . . Largest Inventory Capacity 15 | 8 5 5 5 5 15 5 5 5 5 5 5 5 5 5 5 5 5 5 5 5 5 5 5 5 5 5 5 Average Capacity 5 | 5 5 5 5 5 11 5 5 5 5 5 5 5 5 5 5 5 5 5 5 5 5 5 5 5 5 5 5 Most Carried 10 | 2 2 2 5 5 10 5 5 5 5 5 5 4 4 4 3 3 5 5 5 5 5 5 5 5 5 5 5 Average Carried 4 | 1 2 2 4 4 5 4 4 4 4 5 5 4 4 3 3 3 4 5 4 4 5 5 4 4 4 4 3 Final Capacity 5 | 5 5 5 5 5 5 5 5 5 5 5 5 5 5 5 5 5 5 5 5 5 5 5 5 5 5 5 5 Final Carried 5 | 2 2 2 5 4 5 5 3 5 5 5 5 4 4 4 3 3 5 5 5 5 5 5 4 5 5 5 5 Class Distribution -------------------- 30% | Wizard-Sprinter 28% | Hacker-Sprinter 16% | Mutant 7% | Wizard-Scout 5% | Machinist-Sprinter 3% | Hacker-Scout Dominant Class ---------------- Mutant | -10/Materials Mutant | -10/Mines Mutant | -10/Exiles Mutant | -9/Mines Mutant | -8/Materials Hacker-Sprinter | -7/Factory Hacker-Sprinter | -7/Waste Hacker-Sprinter | -7/Factory Hacker-Sprinter | -6/Factory Hacker-Sprinter | -6/Lower Caves Hacker-Sprinter | -6/Lower Caves Hacker-Sprinter | -6/Data Miner Hacker-Sprinter | -5/Proximity Caves Hacker-Sprinter | -5/Factory Hacker-Sprinter | -5/Upper Caves Hacker-Sprinter | -5/Upper Caves Wizard-Sprinter | -5/Warlord Wizard-Sprinter | -4/Proximity Caves Wizard-Scout | -4/Factory Wizard-Scout | -4/Extension Wizard-Scout | -4/Cetus Wizard-Sprinter | -4/Archives Wizard-Sprinter | -4/Hub_04(d) Wizard-Sprinter | -3/Research Wizard-Sprinter | -2/Research Wizard-Sprinter | -1/Access Machinist-Sprinter | -1/Command Resources | -11 -10 -10 -10 -9 -8 -7 -7 -7 -6 -6 -6 -6 -5 -5 -5 -5 -5 -4 -4 -4 -4 -4 -4 -3 -2 -1 -1 ----------- Run | Yrd Mat Min Exi Min Mat Fac Was Fac Fac Low Low Dat Pro Fac Upp Upp War Pro Fac Ext Cet Arc Hub Res Res Acc Com Matter Collected 2650 | 204 . . . 44 436 311 . 86 114 70 . . 114 . 88 . 50 . . 130 57 59 . 179 80 . 628 Remotely . | . . . . . . . . . . . . . . . . . . . . . . . . . . . . Salvage Created 3102 | . . . . . 521 291 . 86 114 . . . 114 . . . . 69 14 113 . 317 102 136 49 . 1176 Parts 152 | . . . . . 24 14 . 8 4 . . . 2 . . . . . 5 6 . 27 11 3 4 . 44 Haulers Intercepted 1 | . . . . . 1 . . . . . . . . . . . . . . . . . . . . . . Recyclers Shooed . | . . . . . . . . . . . . . . . . . . . . . . . . . . . . Parts Field Recycled . | . . . . . . . . . . . . . . . . . . . . . . . . . . . . Retrieved Matter . | . . . . . . . . . . . . . . . . . . . . . . . . . . . . Parts Self-Destructed 4 | . . . . . . . . . . . . . 2 . . 2 . . . . . . . . . . . Prevented . | . . . . . . . . . . . . . . . . . . . . . . . . . . . . Kills | -11 -10 -10 -10 -9 -8 -7 -7 -7 -6 -6 -6 -6 -5 -5 -5 -5 -5 -4 -4 -4 -4 -4 -4 -3 -2 -1 -1 ------- Run | Yrd Mat Min Exi Min Mat Fac Was Fac Fac Low Low Dat Pro Fac Upp Upp War Pro Fac Ext Cet Arc Hub Res Res Acc Com Combat Hostiles Destroyed 25 | . . . . . 12 . . . . . . . . . . . . . . 2 . . . 3 . . 8 Melee 9 | . . . . . . . . . . . . . . . . . . . . 2 . . . . . . 7 Guns 8 | . . . . . 8 . . . . . . . . . . . . . . . . . . . . . . AOE 8 | . . . . . 4 . . . . . . . . . . . . . . . . . . 3 . . 1 Classes Destroyed 15 | . . . . . 7 1 . 1 . . . . . . . . . . . . . . 1 1 . . 4 Worker 4 | . . . . . 1 . . . . . . . . . . . . . . . . . 2 . 1 . . Builder 6 | . . . . . 1 3 . 1 . . . . . . . . . . 1 . . . . . . . . Tunneler 1 | . . . . . . . . . . . . . . . . . . . . . . . 1 . . . . Hauler 1 | . . . . . 1 . . . . . . . . . . . . . . . . . . . . . . Recycler 4 | . . . . . . 2 . 1 1 . . . . . . . . . . . . . . . . . . Mechanic 1 | . . . . . 1 . . . . . . . . . . . . . . . . . . . . . . Operator 13 | . . . . . 1 2 . . . . . . . . . . . . . 1 . 9 . . . . . Watcher 4 | . . . . . . . . 1 . . . . . . . . . . . . . . 1 . 1 . 1 Swarmer 6 | . . . . . 4 . . . . . . . . . . . . . . 1 . . . . . . 1 Grunt 11 | . . . . . 8 . . . . . . . . . . . . . . 1 . . . 2 . . . Hunter 1 | . . . . . . . . . . . . . . . . . . . . . . . . 1 . . . Programmer 3 | . . . . . . . . . . . . . . . . . . . . . . . . . . . 3 Behemoth 1 | . . . . . . . . . . . . . . . . . . . . . . . . . . . 1 Combat Programmer 1 | . . . . . . . . . . . . . . . . . . . . . . . . . . . 1 Striker 1 | . . . . . . . . . . . . . . . . . . . . . . . . . . . 1 Wasp 3 | . . . . . . . . . . . . . . . . . . . . . . . . . . . 3 Butcher 1 | . . . . . . . . . . . . . . . . . . . . . . . . . . . 1 Wizard 3 | . . . . . . . . . . . . . . . . . . . . . . . . . . . 3 Best Kill Streak 10 | . . . . . 10 3 . 3 1 . . . . . . . . . 1 1 . 5 4 3 1 . 3 Combat Bots Only 6 | . . . . . 6 . . . . . . . . . . . . . . 1 . . . 3 . . 3 Max Kills in Single Turn 6 | . . . . . 3 1 . 1 1 . . . . . . . . . 1 1 . 1 4 2 1 . 6 Gunslinging . | . . . . . . . . . . . . . . . . . . . . . . . . . . . . Exploded 3 | . . . . . 3 . . . . . . . . . . . . . . . . . . 2 . . 1 Melee 1 | . . . . . . . . . . . . . . . . . . . . 1 . . . . . . 1 Uniques/NPCs Destroyed 1 | . . . . . . . . . . . . . . . . . . . . . . . . . . . 1 MAIN.C Shell (-1/Command) Combat | -11 -10 -10 -10 -9 -8 -7 -7 -7 -6 -6 -6 -6 -5 -5 -5 -5 -5 -4 -4 -4 -4 -4 -4 -3 -2 -1 -1 -------- Run | Yrd Mat Min Exi Min Mat Fac Was Fac Fac Low Low Dat Pro Fac Upp Upp War Pro Fac Ext Cet Arc Hub Res Res Acc Com Hostile Shots Fired 543 | . 1 9 . . 57 41 1 7 46 . 18 2 6 13 1 . 3 8 . 14 1 . . 41 . 76 198 Missed 249 | . . 4 . . 16 27 . 3 29 . 16 1 3 9 . . 2 4 . 9 1 . . 18 . 45 62 Damage Taken 8765 | . 10 41 . . 543 193 42 54 256 . 15 50 44 62 21 . 23 68 185 511 15 40 96 563 . 692 5241 Core 2699 | . . 19 . . 84 98 17 37 90 . . 40 32 17 . . . 68 127 301 . . . 130 . 119 1520 Absorbed by Shields 38 | . . . . . . . . . . . . . . . . . . . . 27 . . . . . 11 . Redirected to Shielding 376 | . . . . . . . . . . . . . . . . . . . . . . . . 100 . 109 167 Ignored by Resistances 20 | . . . . . 20 . . . . . . . . . . . . . . . . . . . . . . Regen/Repaired (Parts) 626 | . . . . . . . . . 34 . . . . 50 . . 55 . . . . . . . 378 . 109 Core Remaining (%) 86 | 100 . . . 92 84 . . 78 . . . . 80 . . . . 91 . . . . 62 90 100 . . Volleys Fired 126 | . . . . . 62 16 . . 1 . . . . . . . . . . . . . 3 3 . . 41 Largest 2 | . . . . . 2 1 . . 1 . . . . . . . . . . . . . 1 1 . . 1 Hottest 118 | . . . . . 118 39 . . 39 . . . . . . . . . . . . . 100 49 . . 80 Shots Fired 178 | . . . . . 114 16 . . 1 . . . . . . . . . . . . . 3 3 . . 41 Gun 120 | . . . . . 106 14 . . . . . . . . . . . . . . . . . . . . . Cannon 18 | . . . . . 5 . . . . . . . . . . . . . . . . . 3 . . . 10 Launcher 40 | . . . . . 3 2 . . 1 . . . . . . . . . . . . . . 3 . . 31 Special . | . . . . . . . . . . . . . . . . . . . . . . . . . . . . Kinetic 127 | . . . . . 103 14 . . . . . . . . . . . . . . . . . . . . 10 Thermal 8 | . . . . . 8 . . . . . . . . . . . . . . . . . . . . . . Explosive 9 | . . . . . 3 2 . . 1 . . . . . . . . . . . . . . 3 . . . Electromagnetic 26 | . . . . . . . . . . . . . . . . . . . . . . . . . . . 26 Entropic 8 | . . . . . . . . . . . . . . . . . . . . . . . 3 . . . 5 Robot Hit Streak 12 | . . . . . 12 2 . . . . . . . . . . . . . . . . . . . . 5 Robot Miss Streak 4 | . . . . . 4 2 . . . . . . . . . . . . . . . . . . . . 2 Penetration Max 1 | . . . . . 1 . . . . . . . . . . . . . . . . . . . . . . Secondary Targets . | . . . . . . . . . . . . . . . . . . . . . . . . . . . . Shots Hit Robots 169 | . . . . . 59 14 . 5 2 . . 1 2 . . . . 1 1 21 2 12 . 1 2 . 46 Core Hits 119 | . . . . . 28 5 . 2 1 . . . 1 . . . . 1 1 5 2 6 9 6 2 . 50 Critical Kills . | . . . . . . . . . . . . . . . . . . . . . . . . . . . . Critical Parts Destroyed 3 | . . . . . 2 1 . . . . . . . . . . . . . . . . . . . . . Critical Strikes 16 | . . . . . 2 1 . . . . . . . . . . . . . 2 . . . . . . 11 Destroy 3 | . . . . . 2 1 . . . . . . . . . . . . . . . . . . . . . Blast 1 | . . . . . . . . . . . . . . . . . . . . . . . . . . . 1 Sever 2 | . . . . . . . . . . . . . . . . . . . . 2 . . . . . . . Impale 10 | . . . . . . . . . . . . . . . . . . . . . . . . . . . 10 Melee Attacks 385 | . . . . . 8 57 . 13 12 2 3 23 11 18 1 10 8 10 5 28 7 14 5 43 12 29 66 Impact 22 | . . . . . 8 14 . . . . . . . . . . . . . . . . . . . . . Slashing 204 | . . . . . . 42 . 13 11 2 3 3 . . . . . . . 6 7 14 5 43 12 29 14 Piercing 144 | . . . . . . . . . . . . 20 11 18 1 10 8 10 5 9 . . . . . . 52 Sneak Attacks 36 | . . . . . . 4 . 3 2 . . 1 . . . . . . 1 14 . 9 . . 1 . 1 Combat Hostiles 1 | . . . . . . . . . . . . . . . . . . . . . . . . . . . 1 Follow-up Attacks 1 | . . . . . . . . . . . . . . . . . . . . . . . . . . . 1 Damage Inflicted 13488 | . . . . . 1643 637 . 326 80 . . 97 149 . . . . 75 104 517 86 1278 431 673 234 . 7158 Guns 1383 | . . . . . 1242 141 . . . . . . . . . . . . . . . . . . . . . Cannons 680 | . . . . . 63 . . . . . . . . . . . . . . . . . . . . . 617 Explosions 5419 | . . . . . 336 18 . . . . . . . . . . . . . . . . 431 598 . . 4036 Melee 6004 | . . . . . . 478 . 326 80 . . 97 149 . . . . 75 104 517 86 1278 . 75 234 . 2505 Ramming 2 | . . . . . 2 . . . . . . . . . . . . . . . . . . . . . . Kinetic 1988 | . . . . . 1230 141 . . . . . . . . . . . . . . . . . . . . 617 Thermal 75 | . . . . . 75 . . . . . . . . . . . . . . . . . . . . . . Explosive 952 | . . . . . 336 18 . . . . . . . . . . . . . . . . . 598 . . . Electromagnetic 482 | . . . . . . . . . . . . . . . . . . . . . . . 431 . . . 51 Impact 283 | . . . . . . 283 . . . . . . . . . . . . . . . . . . . . . Slashing 2682 | . . . . . . 195 . 326 80 . . . . . . . . . . 308 86 1278 . 75 234 . 100 Piercing 3039 | . . . . . . . . . . . . 97 149 . . . . 75 104 209 . . . . . . 2405 Entropic 3985 | . . . . . . . . . . . . . . . . . . . . . . . . . . . 3985 Highest Corruption 12 | . . . . . . 2 2 1 . . . . . . . . . . 2 5 5 5 1 1 . 1 12 Average Corruption 3 | . . . . . . 1 1 1 . . . . . . . . . . 1 4 5 3 1 1 . 1 3 Corruption Purged 7 | . . . . . . . 1 1 . . . . . . . . . . . . . 5 . . . . . Corruption Blocked . | . . . . . . . . . . . . . . . . . . . . . . . . . . . . Effects 45 | . . . . . . 4 1 . . . . . . . . . . . 1 8 7 1 . . . . 23 Message Errors 8 | . . . . . . . . . . . . . . . . . . . . 2 1 . . . . . 5 Matter Fused 13 | . . . . . . 2 . . . . . . . . . . . . . 2 3 1 . . . . 5 Heat Flow Errors 12 | . . . . . . 2 . . . . . . . . . . . . 1 2 1 . . . . . 6 Energy Discharges 3 | . . . . . . . . . . . . . . . . . . . . . 1 . . . . . 2 Parts Rejected 2 | . . . . . . . . . . . . . . . . . . . . 1 . . . . . . 1 Data Loss (minor) 5 | . . . . . . . . . . . . . . . . . . . . 1 . . . . . . 4 Data Loss (major) 1 | . . . . . . . . . . . . . . . . . . . . . 1 . . . . . . Alerts 1 | . . . . . . . 1 . . . . . . . . . . . . . . . . . . . . Overload Shots . | . . . . . . . . . . . . . . . . . . . . . . . . . . . . Overflow Damage 1124 | . . . . . 11 261 . 120 . . . . 50 . . . . . . . . 356 1 2 . . 323 Projectiles 11 | . . . . . 11 . . . . . . . . . . . . . . . . . . . . . . Explosions 65 | . . . . . . . . . . . . . . . . . . . . . . . 1 2 . . 62 Melee 1048 | . . . . . . 261 . 120 . . . . 50 . . . . . . . . 356 . . . . 261 Knockbacks 8 | . . . . . . 1 . . . . . . . . . . . . . . . . . . . . 7 Impact 1 | . . . . . . 1 . . . . . . . . . . . . . . . . . . . . . Kinetic 7 | . . . . . . . . . . . . . . . . . . . . . . . . . . . 7 Secondary . | . . . . . . . . . . . . . . . . . . . . . . . . . . . . Self-Inflicted Damage 114 | . . . . . . . . . . . . . . . . . . . . . . . 98 . . . 16 Shots 3 | . . . . . . . . . . . . . . . . . . . . . . . 1 . . . 2 Rammed 1 | . . . . . 1 . . . . . . . . . . . . . . . . . . . . . . Targets Rammed 1 | . . . . . 1 . . . . . . . . . . . . . . . . . . . . . . Kicked . | . . . . . . . . . . . . . . . . . . . . . . . . . . . . Crushed . | . . . . . . . . . . . . . . . . . . . . . . . . . . . . Highest Temperature 419 | . . . . . 189 268 2 74 60 21 4 121 100 308 9 114 . 296 78 218 141 17 126 84 . 419 361 Average Temperature 70 | . . . . . 35 120 2 32 17 11 4 75 50 160 9 33 . 118 30 83 31 6 24 33 . 142 62 Received Heat Transfer 970 | . . . . . 297 105 . . 69 . 6 . . 9 9 . . . . 12 . . . 94 . 45 324 Effects 3 | . . . . . . 1 . . . . . . . . . . . . . . . . . . . 1 1 Shutdowns 1 | . . . . . . . . . . . . . . . . . . . . . . . . . . 1 . Energy Bleed 1 | . . . . . . 1 . . . . . . . . . . . . . . . . . . . . . Damage (minor) 1 | . . . . . . . . . . . . . . . . . . . . . . . . . . . 1 Siege Activations . | . . . . . . . . . . . . . . . . . . . . . . . . . . . . Robots Corrupted 1 | . . . . . . 1 . . . . . . . . . . . . . . . . . . . . . Combat Hostiles . | . . . . . . . . . . . . . . . . . . . . . . . . . . . . Parts Fried 3 | . . . . . . 2 . . . . . . . . . . . . . . . . 1 . . . . Impact Corruptions 5 | . . . . . . 5 . . . . . . . . . . . . . . . . . . . . . Robots Melted . | . . . . . . . . . . . . . . . . . . . . . . . . . . . . Combat Hostiles . | . . . . . . . . . . . . . . . . . . . . . . . . . . . . Parts Melted . | . . . . . . . . . . . . . . . . . . . . . . . . . . . . Heat Transferred 148 | . . . . . 148 . . . . . . . . . . . . . . . . . . . . . . Parts Sabotaged . | . . . . . . . . . . . . . . . . . . . . . . . . . . . . Parts Stolen . | . . . . . . . . . . . . . . . . . . . . . . . . . . . . Parts Stripped . | . . . . . . . . . . . . . . . . . . . . . . . . . . . . Power Chain Reactions 5 | . . . . . . . . . . . . . . . . . . . . . . . . . . . 5 Alert | -11 -10 -10 -10 -9 -8 -7 -7 -7 -6 -6 -6 -6 -5 -5 -5 -5 -5 -4 -4 -4 -4 -4 -4 -3 -2 -1 -1 ------- Run | Yrd Mat Min Exi Min Mat Fac Was Fac Fac Low Low Dat Pro Fac Upp Upp War Pro Fac Ext Cet Arc Hub Res Res Acc Com Peak Influence 767 | . 15 50 . . 268 215 82 247 396 . . . . 129 . . . . 20 767 687 538 529 277 48 410 360 Initial 443 | . . 5 . . . 4 52 43 120 . . . . 44 . . . . . 9 443 274 188 277 45 21 76 Average 149 | . 2 32 . . 59 95 59 126 174 . . . . 64 . . . . 5 348 555 475 287 106 29 135 199 Maximum Alert Level 3 | . . . . . 1 1 . 1 1 . . . . . . . . . . 3 2 2 2 1 . 2 1 Low Security (%) 75 | 100 100 100 . 100 92 94 100 96 65 . . . . 100 . . . . 100 44 . . 14 91 100 64 54 Level 1 16 | . . . . . 7 5 . 3 34 . . . . . . . . . . 18 . 15 83 8 . 34 45 Level 2 6 | . . . . . . . . . . . . . . . . . . . . 9 100 84 1 . . . . Level 3 1 | . . . . . . . . . . . . . . . . . . . . 27 . . . . . . . Level 4 . | . . . . . . . . . . . . . . . . . . . . . . . . . . . . Level 5 . | . . . . . . . . . . . . . . . . . . . . . . . . . . . . High Security . | . . . . . . . . . . . . . . . . . . . . . . . . . . . . Max Security . | . . . . . . . . . . . . . . . . . . . . . . . . . . . . Squads Dispatched 50 | . . . . . 1 11 . 2 6 . . . . 1 . . . . 1 1 . . 2 9 1 9 6 Investigation 25 | . . . . . . 8 . 2 4 . . . . 1 . . . . 1 . . . 1 5 . 3 . Extermination 5 | . . . . . . 2 . . 1 . . . . . . . . . . . . . . . . . 2 Reinforcement 12 | . . . . . 1 1 . . 1 . . . . . . . . . . . . . 1 1 1 3 3 Assault 2 | . . . . . . . . . . . . . . . . . . . . 1 . . . . . . 1 Garrison 3 | . . . . . . . . . . . . . . . . . . . . . . . . . . 3 . Intercept 3 | . . . . . . . . . . . . . . . . . . . . . . . . 3 . . . Searches Triggered 1 | . . . . . . . . . . . . . . . . . . . . . . . . . . 1 . Construction Impeded 1 | . . . . . . . . . . . . . . . . . . . . . . . 1 . . . . Haulers Reinforced . | . . . . . . . . . . . . . . . . . . . . . . . . . . . . Active Scanning Responses . | . . . . . . . . . . . . . . . . . . . . . . . . . . . . Cargo Convoy Interrupts . | . . . . . . . . . . . . . . . . . . . . . . . . . . . . Stealth | -11 -10 -10 -10 -9 -8 -7 -7 -7 -6 -6 -6 -6 -5 -5 -5 -5 -5 -4 -4 -4 -4 -4 -4 -3 -2 -1 -1 --------- Run | Yrd Mat Min Exi Min Mat Fac Was Fac Fac Low Low Dat Pro Fac Upp Upp War Pro Fac Ext Cet Arc Hub Res Res Acc Com Distress Signals 35 | . 1 . . . 2 1 . 1 1 . . . . . . . . . 1 2 2 . 1 3 6 3 11 Communications Jammed . | . . . . . . . . . . . . . . . . . . . . . . . . . . . . Distress Signals . | . . . . . . . . . . . . . . . . . . . . . . . . . . . . Times Spotted 318 | . 4 3 . . 25 32 6 9 32 . 1 4 4 11 3 4 13 8 . 37 7 5 1 21 9 43 36 Peak Tracking Total 21 | . 4 3 . . 7 6 6 6 17 . 1 4 4 5 2 4 7 5 2 7 5 1 3 5 4 21 11 Tactical Retreats 59 | . . 1 . . 3 11 . 2 8 . . . 1 2 1 . 2 2 1 7 . . . 6 . 10 2 Traps | -11 -10 -10 -10 -9 -8 -7 -7 -7 -6 -6 -6 -6 -5 -5 -5 -5 -5 -4 -4 -4 -4 -4 -4 -3 -2 -1 -1 ------- Run | Yrd Mat Min Exi Min Mat Fac Was Fac Fac Low Low Dat Pro Fac Upp Upp War Pro Fac Ext Cet Arc Hub Res Res Acc Com Traps Triggered 12 | . . . . . . 2 . . 3 . . . . . . . . . 1 4 . . . . . 2 . Indirectly . | . . . . . . . . . . . . . . . . . . . . . . . . . . . . Trap Hack Attempts . | . . . . . . . . . . . . . . . . . . . . . . . . . . . . Triggered . | . . . . . . . . . . . . . . . . . . . . . . . . . . . . Disarmed . | . . . . . . . . . . . . . . . . . . . . . . . . . . . . Reprogrammed . | . . . . . . . . . . . . . . . . . . . . . . . . . . . . Reused . | . . . . . . . . . . . . . . . . . . . . . . . . . . . . Traps Extracted . | . . . . . . . . . . . . . . . . . . . . . . . . . . . . Installed . | . . . . . . . . . . . . . . . . . . . . . . . . . . . . Triggered 7 | . . . . . . . . . . 1 . . . . . . 5 . . 1 . . . . . . . Objects Rigged 3 | . . . . . . . . . . . . . . . . . . . . . . . 3 . . . . Machines | -11 -10 -10 -10 -9 -8 -7 -7 -7 -6 -6 -6 -6 -5 -5 -5 -5 -5 -4 -4 -4 -4 -4 -4 -3 -2 -1 -1 ---------- Run | Yrd Mat Min Exi Min Mat Fac Was Fac Fac Low Low Dat Pro Fac Upp Upp War Pro Fac Ext Cet Arc Hub Res Res Acc Com Machines Disabled 13 | . . . . . 3 . . . . 1 . . . . . . . . . 1 1 2 3 . . . 2 Max in Single Turn 2 | . . . . . 1 . . . . 1 . . . . . . . . . . 1 . 2 . . . 1 Garrison Access 3 | . . . . . . . . . . . . . . . . . . . . . . . . 2 1 . . Network Hub 1 | . . . . . . . . . . . . . . . . . . . . . . . 1 . . . . Machines Repaired . | . . . . . . . . . . . . . . . . . . . . . . . . . . . . Machines Dismantled . | . . . . . . . . . . . . . . . . . . . . . . . . . . . . Machines Sabotaged . | . . . . . . . . . . . . . . . . . . . . . . . . . . . . Overloaded Fab Kills . | . . . . . . . . . . . . . . . . . . . . . . . . . . . . Hacking | -11 -10 -10 -10 -9 -8 -7 -7 -7 -6 -6 -6 -6 -5 -5 -5 -5 -5 -4 -4 -4 -4 -4 -4 -3 -2 -1 -1 --------- Run | Yrd Mat Min Exi Min Mat Fac Was Fac Fac Low Low Dat Pro Fac Upp Upp War Pro Fac Ext Cet Arc Hub Res Res Acc Com Machines Accessed 101 | . . . 2 . 1 23 . 6 7 1 1 3 1 4 2 1 4 . 2 10 3 1 3 8 4 8 6 Terminals 57 | . . . . . 1 15 . 4 3 . . . 1 2 . . . . 1 10 3 . 3 2 2 5 5 Fabricators 19 | . . . . . . 6 . 1 3 . . . . 1 . . . . 1 . . . . 4 . 3 . Repair Stations 5 | . . . . . . . . 1 1 . . . . 1 . . . . . . . . . . 1 . 1 Recycling Units . | . . . . . . . . . . . . . . . . . . . . . . . . . . . . Scanalyzers 1 | . . . . . . 1 . . . . . . . . . . . . . . . . . . . . . Garrison Access 4 | . . . . . . 1 . . . . . . . . . . . . . . . . . 2 1 . . Total Hacks 311 | . . . 2 . 5 76 . 16 21 3 1 24 1 11 7 1 12 . 4 16 6 5 5 27 22 31 15 Successful 234 | . . . 2 . 3 38 . 11 15 3 1 24 1 10 7 1 12 . 4 15 6 5 5 26 14 25 6 Failed 76 | . . . . . 2 38 . 5 6 . . . . 1 . . . . . . . . . 1 8 6 9 Catastrophic 6 | . . . . . . 4 . . 1 . . . . . . . . . . . . . . . . . 1 Database Lockouts 1 | . . . . . . . . . . . . . . . . . . . . 1 . . . . . . . Manual 148 | . . . 1 . 1 47 . 12 9 . . . . 6 . . 1 . 1 14 2 . 3 17 10 13 11 Terminals 163 | . . . . . 5 45 . 11 9 . . . 1 6 . . . . 1 16 6 . 5 13 14 18 13 Fabricators 71 | . . . . . . 26 . 4 10 . . . . 3 . . . . 3 . . . . 12 . 13 . Repair Stations 13 | . . . . . . . . 1 2 . . . . 2 . . . . . . . . . . 6 . 2 Recycling Units . | . . . . . . . . . . . . . . . . . . . . . . . . . . . . Scanalyzers 3 | . . . . . . 3 . . . . . . . . . . . . . . . . . . . . . Garrison Access 6 | . . . . . . 2 . . . . . . . . . . . . . . . . . 2 2 . . Terminal Hacks 147 | . . . 2 . 3 16 . 5 5 3 1 24 1 4 7 1 12 . 1 13 6 5 2 11 8 13 4 Record 31 | . . . 1 . . . . . . 3 . 6 1 . 6 1 2 . . . 5 5 1 . . . . Part Schematic 26 | . . . . . . 2 . 2 1 . . 11 . . . . . . . 3 . . . 5 2 . . Robot Schematic 4 | . . . . . . . . . . . . 4 . . . . . . . . . . . . . . . Prototype ID Bank 13 | . . . . . . . . . . . . 3 . . . . 9 . . . . . . . 1 . . Open Door 14 | . . . . . . . . . . . 1 . . . 1 . 1 . 1 6 1 . . . . 3 . Level Access Points 5 | . . . . . 1 . . 1 . . . . . . . . . . . . . . 1 1 1 . . Branch Access Points 4 | . . . . . . 2 . . 1 . . . . 1 . . . . . . . . . . . . . Emergency Access Points 2 | . . . . . . 1 . . . . . . . . . . . . . . . . . . . 1 . Terminal Index 3 | . . . . . . 1 . 1 1 . . . . . . . . . . . . . . . . . . Fabricator Index 4 | . . . . . . 1 . 1 1 . . . . . . . . . . . . . . . 1 . . Scanalyzer Index 1 | . . . . . . 1 . . . . . . . . . . . . . . . . . . . . . Unreport Threat 21 | . . . . . 2 2 . . 1 . . . . 1 . . . . . 3 . . . 3 3 4 2 Locate Traps 3 | . . . . . . 1 . . . . . . . . . . . . . 1 . . . 1 . . . Recall Investigation 7 | . . . . . . 3 . . . . . . . 1 . . . . . . . . . . . 3 . Recall Extermination 2 | . . . . . . 1 . . . . . . . . . . . . . . . . . . . 1 . Recall Reinforcements 1 | . . . . . . . . . . . . . . . . . . . . . . . . . . 1 . Zone Layout 3 | . . . . . . 1 . . . . . . . 1 . . . . . . . . . 1 . . . Derelict Proto ID Bank 1 | . . . 1 . . . . . . . . . . . . . . . . . . . . . . . . Disengage Seal 2 | . . . . . . . . . . . . . . . . . . . . . . . . . . . 2 Fabricator Hacks 38 | . . . . . . 11 . 2 5 . . . . 2 . . . . 2 . . . . 8 . 8 . Load Schematic 23 | . . . . . . 6 . 1 3 . . . . 1 . . . . 1 . . . . 5 . 6 . Build 15 | . . . . . . 5 . 1 2 . . . . 1 . . . . 1 . . . . 3 . 2 . Repair Station Hacks 10 | . . . . . . . . . 2 . . . . 2 . . . . . . . . . . 4 . 2 Scan Component 5 | . . . . . . . . . 1 . . . . 1 . . . . . . . . . . 2 . 1 Repair 5 | . . . . . . . . . 1 . . . . 1 . . . . . . . . . . 2 . 1 Recycling Unit Hacks . | . . . . . . . . . . . . . . . . . . . . . . . . . . . . Scanalyzer 3 | . . . . . . 3 . . . . . . . . . . . . . . . . . . . . . Insert Component 1 | . . . . . . 1 . . . . . . . . . . . . . . . . . . . . . Analyze 2 | . . . . . . 2 . . . . . . . . . . . . . . . . . . . . . Garrison Access Hacks 4 | . . . . . . . . . . . . . . . . . . . . . . . . 2 2 . . Unlock Access 1 | . . . . . . . . . . . . . . . . . . . . . . . . . 1 . . Seal Access 3 | . . . . . . . . . . . . . . . . . . . . . . . . 2 1 . . Unauthorized Hacks 32 | . . . . . . 8 . 4 3 . . . . 2 . . . . 1 2 . . 3 5 . 4 . Terminals 15 | . . . . . . 4 . 3 1 . . . . 1 . . . . . 2 . . 3 1 . . . Assimilate 7 | . . . . . . 3 . 3 . . . . . . . . . . . . . . . 1 . . . Botnet 3 | . . . . . . 1 . . 1 . . . . 1 . . . . . . . . . . . . . Detonate 3 | . . . . . . . . . . . . . . . . . . . . . . . 3 . . . . Disrupt 2 | . . . . . . . . . . . . . . . . . . . . 2 . . . . . . . Fabricators 17 | . . . . . . 4 . 1 2 . . . . 1 . . . . 1 . . . . 4 . 4 . Prioritize 12 | . . . . . . 4 . 1 2 . . . . 1 . . . . 1 . . . . 2 . 1 . Recompile 5 | . . . . . . . . . . . . . . . . . . . . . . . . 2 . 3 . Repair Stations . | . . . . . . . . . . . . . . . . . . . . . . . . . . . . Recycling Units . | . . . . . . . . . . . . . . . . . . . . . . . . . . . . Scanalyzers . | . . . . . . . . . . . . . . . . . . . . . . . . . . . . Garrison Access . | . . . . . . . . . . . . . . . . . . . . . . . . . . . . Data Cores Recovered 3 | . . . . . . 2 . . . . . . . . . . . . . 1 . . . . . . . Used 2 | . . . . . . 1 . . . . . . . . . . . . . 1 . . . . . . . Hacking Detections 51 | . . . . . 1 20 . 5 6 . . . 1 3 . . . . 2 . . . 1 2 2 5 3 Full Trace Events 17 | . . . . . . 8 . 2 3 . . . . 1 . . . . 1 . . . . 2 . . . Feedback Events 2 | . . . . . . 1 . 1 . . . . . . . . . . . . . . . . . . . Corruption 2 | . . . . . . 1 . 1 . . . . . . . . . . . . . . . . . . . Feedback Blocked . | . . . . . . . . . . . . . . . . . . . . . . . . . . . . Robot Schematics Acquired 4 | . . . . . . . . . . . . 4 . . . . . . . . . . . . . . . Robots Built . | . . . . . . . . . . . . . . . . . . . . . . . . . . . . Authchips . | . . . . . . . . . . . . . . . . . . . . . . . . . . . . Time . | . . . . . . . . . . . . . . . . . . . . . . . . . . . . Total Robot Build Rating . | . . . . . . . . . . . . . . . . . . . . . . . . . . . . Part Schematics Acquired 26 | . . . . . . 3 . 2 1 . . 11 . . . . . . . 3 . . . 5 1 . . Parts Built 16 | . . . . . . 5 . 1 2 . . . . 1 . . . . 2 . . . . 3 . 2 . Authchips 3 | . . . . . . . . . . . . . . . . . . . . . . . . 1 . 2 . Time 567 | . . . . . . 239 . 22 45 . . . . 67 . . . . 29 . . . . 97 . 68 . Total Part Build Rating 80 | . . . . . . 18 . 4 9 . . . . 4 . . . . 14 . . . . 15 . 16 . Parts Repaired 5 | . . . . . . . . . 1 . . . . 1 . . . . . . . . . . 2 . 1 Time 175 | . . . . . . . . . 38 . . . . 35 . . . . . . . . . . 62 . 40 Parts Recycled . | . . . . . . . . . . . . . . . . . . . . . . . . . . . . Recycled Matter . | . . . . . . . . . . . . . . . . . . . . . . . . . . . . Retrieved Matter . | . . . . . . . . . . . . . . . . . . . . . . . . . . . . Retrieved Components . | . . . . . . . . . . . . . . . . . . . . . . . . . . . . Parts Scanalyzed 1 | . . . . . . 1 . . . . . . . . . . . . . . . . . . . . . Part Schematics Acquired 1 | . . . . . . 1 . . . . . . . . . . . . . . . . . . . . . Parts Damaged 1 | . . . . . . 1 . . . . . . . . . . . . . . . . . . . . . Bothacking | -11 -10 -10 -10 -9 -8 -7 -7 -7 -6 -6 -6 -6 -5 -5 -5 -5 -5 -4 -4 -4 -4 -4 -4 -3 -2 -1 -1 ------------ Run | Yrd Mat Min Exi Min Mat Fac Was Fac Fac Low Low Dat Pro Fac Upp Upp War Pro Fac Ext Cet Arc Hub Res Res Acc Com Used RIF Installer . | . . . . . . . . . . . . . . . . . . . . . . . . . . . . Robots Hacked 2 | . . . . . . 1 . . 1 . . . . . . . . . . . . . . . . . . Non-combat 2 | . . . . . . 1 . . 1 . . . . . . . . . . . . . . . . . . Combat . | . . . . . . . . . . . . . . . . . . . . . . . . . . . . Robot Hacks Applied 2 | . . . . . . 1 . . 1 . . . . . . . . . . . . . . . . . . find_chute 2 | . . . . . . 1 . . 1 . . . . . . . . . . . . . . . . . . Relay Couplers Released . | . . . . . . . . . . . . . . . . . . . . . . . . . . . . Fabnet Peak Effective % . | . . . . . . . . . . . . . . . . . . . . . . . . . . . . Robots Rewired 17 | . . . . . . . . . . . . . . . 3 . . . . 14 . . . . . . . Allies Hacked 2 | . . . . . . . . . . . . . . . . 2 . . . . . . . . . . . Hacks Repelled . | . . . . . . . . . . . . . . . . . . . . . . . . . . . . Allies | -11 -10 -10 -10 -9 -8 -7 -7 -7 -6 -6 -6 -6 -5 -5 -5 -5 -5 -4 -4 -4 -4 -4 -4 -3 -2 -1 -1 -------- Run | Yrd Mat Min Exi Min Mat Fac Was Fac Fac Low Low Dat Pro Fac Upp Upp War Pro Fac Ext Cet Arc Hub Res Res Acc Com Total Allies 38 | . . . . . . 2 . 2 . . . . . . 6 . . . . 22 5 . . 1 . . . Largest Group 10 | . . . . . . 1 . 2 . . . . . . 6 3 . . . 10 10 9 7 3 . . . Highest-Rated Group 712 | . . . . . . 26 . 36 . . . . . . 163 75 . . . 559 712 602 463 102 . . . Highest-Rated Ally 159 | . . . . . . 26 . 26 . . . . . . 31 25 . . . 159 146 96 96 41 . . . Total Orders 2 | . . . . . . 2 . . . . . . . . . . . . . . . . . . . . . STAY 1 | . . . . . . 1 . . . . . . . . . . . . . . . . . . . . . FOLLOW 1 | . . . . . . 1 . . . . . . . . . . . . . . . . . . . . . Ally Attacks 263 | . . . . . . . . . . . . . . . 13 8 . . . 127 54 22 35 4 . . . Total Damage 7097 | . . . . . . . . . . . . . . . 271 187 . . . 3672 1401 660 835 71 . . . Kills 47 | . . . . . . . . . . . . . . . 1 1 . . . 25 10 5 4 1 . . . Allies Corrupted 2 | . . . . . . . . . . . . . . . . . . . . 1 . . . 1 . . . Allies Melted 2 | . . . . . . . . . . . . . . . . . 1 . . . . . . . . . 1 Intel | -11 -10 -10 -10 -9 -8 -7 -7 -7 -6 -6 -6 -6 -5 -5 -5 -5 -5 -4 -4 -4 -4 -4 -4 -3 -2 -1 -1 ------- Run | Yrd Mat Min Exi Min Mat Fac Was Fac Fac Low Low Dat Pro Fac Upp Upp War Pro Fac Ext Cet Arc Hub Res Res Acc Com Robot Analysis Total 145 | . . . . . . . . . . . . 145 . . . . . . . . . . . . . . . Derelict Logs Recovered 9 | . . 1 . 1 . . . . . 1 2 . 2 . 2 . . . . . . . . . . . . Drone Launches . | . . . . . . . . . . . . . . . . . . . . . . . . . . . . Drone Recoveries . | . . . . . . . . . . . . . . . . . . . . . . . . . . . . Exploration | -11 -10 -10 -10 -9 -8 -7 -7 -7 -6 -6 -6 -6 -5 -5 -5 -5 -5 -4 -4 -4 -4 -4 -4 -3 -2 -1 -1 ------------- Run | Yrd Mat Min Exi Min Mat Fac Was Fac Fac Low Low Dat Pro Fac Upp Upp War Pro Fac Ext Cet Arc Hub Res Res Acc Com Turns Passed 10687 | 49 30 300 113 138 1090 1347 44 167 380 176 91 104 197 334 395 249 511 406 81 500 309 229 105 1271 312 446 1313 Spaces Moved 15734 | 66 59 313 219 95 373 2328 149 369 881 702 362 141 743 336 618 394 1021 523 144 759 235 285 113 1265 360 596 2285 Core 673 | 58 59 313 219 19 . . . . . . . . . . . . . . . 1 . . . . . . 4 Treads 392 | . . . . 76 316 . . . . . . . . . . . . . . . . . . . . . . Legs 121 | 8 . . . . 1 . . . . . . . . . . . . . . . . . . . . . 112 Wheels . | . . . . . . . . . . . . . . . . . . . . . . . . . . . . Hover . | . . . . . . . . . . . . . . . . . . . . . . . . . . . . Flight 14548 | . . . . . 56 2328 149 369 881 702 362 141 743 336 618 394 1021 523 144 758 235 285 113 1265 360 596 2169 Fastest Speed 6 | 50 50 50 50 50 27 24 24 17 14 14 23 14 14 6 20 6 20 6 20 6 6 20 20 6 26 6 6 Average Speed 28 | 58 50 50 50 138 168 26 24 25 22 22 23 21 22 18 20 19 20 19 21 19 19 20 20 23 26 18 27 Slowest Speed 250 | 120 50 50 50 160 240 97 30 27 23 23 23 23 23 20 20 20 20 20 29 250 20 20 89 101 26 22 250 Overloaded Moves 414 | . . . . . . . . 14 34 3 . 17 15 27 . 7 . 35 . 56 6 . . 46 . 128 26 Propulsion Burnouts . | . . . . . . . . . . . . . . . . . . . . . . . . . . . . Robots Hopped 70 | . . . . . . 9 . 1 10 . . . . 4 . 2 . . 1 5 . . . 5 5 24 4 Cave-ins Triggered . | . . . . . . . . . . . . . . . . . . . . . . . . . . . . Exploration Rate (%) 48 | 4 21 73 59 29 46 44 76 11 28 91 53 80 82 8 77 49 90 54 6 75 77 97 15 34 17 24 43 Regions Visited 27 Branch Regions 16 Pre-discovered Areas 32 | . . . 1 . . . . . . . . 30 . . 1 . . . . . . . . . . . . Known Exits Taken 18 | . . . 1 . 1 . . 1 1 1 1 1 1 1 1 1 1 1 1 1 . . 1 1 1 . . Unknown Exits Taken 7 | 1 1 1 . 1 . . . . . . . . . . . . . . . . 1 1 . . . 1 . Scrap Searched 14 | . . . . 1 . . . . . 2 2 . 1 . 3 2 . 3 . . . . . . . . . Spaces Dug 236 | . . . . . 9 48 . 7 10 1 3 . 6 13 1 9 5 9 4 2 . . 9 39 8 29 24 Terrain Destroyed 591 | . . . . . 40 80 . 7 28 1 3 . 6 13 1 9 5 9 4 2 . . 154 79 8 29 113 Melee 231 | . . . . . 8 48 . 7 10 1 3 . 6 13 1 9 5 9 4 2 . . 5 39 8 29 24 Projectile 8 | . . . . . 2 1 . . . . . . . . . . . . . . . . 5 . . . . AOE 351 | . . . . . 29 31 . . 18 . . . . . . . . . . . . . 144 40 . . 89 Terrain Rammed . | . . . . . . . . . . . . . . . . . . . . . . . . . . . . Walls Destroyed . | . . . . . . . . . . . . . . . . . . . . . . . . . . . . Machines Disabled . | . . . . . . . . . . . . . . . . . . . . . . . . . . . . Actions | -11 -10 -10 -10 -9 -8 -7 -7 -7 -6 -6 -6 -6 -5 -5 -5 -5 -5 -4 -4 -4 -4 -4 -4 -3 -2 -1 -1 --------- Run | Yrd Mat Min Exi Min Mat Fac Was Fac Fac Low Low Dat Pro Fac Upp Upp War Pro Fac Ext Cet Arc Hub Res Res Acc Com Total 21097 | 74 58 455 221 101 702 2941 155 419 1031 713 364 182 753 575 887 547 1315 813 186 1075 487 434 184 2172 547 851 2855 Wait 4513 | . . 143 . . 216 503 2 29 122 5 . 21 . 221 261 146 273 281 32 253 241 127 63 837 168 214 355 Move 15581 | 65 58 312 218 94 372 2312 148 366 860 701 361 140 742 327 617 390 1020 522 141 748 234 284 112 1255 351 552 2279 Hop 57 | . . . . . . 7 . 1 10 . . . . 4 . 1 . . 1 5 . . . 4 3 19 2 Pick Up 71 | 2 . . 3 1 8 12 . 1 2 1 . . . 1 . . 2 . 1 1 . . . 6 . 7 23 Fast Attach 110 | 5 . . . 2 10 9 2 4 7 1 . . . . . . 5 . 1 7 2 5 . 6 7 4 33 Attach 46 | . . . . . 5 8 2 . . . . 1 . 2 1 . . . 1 1 . . 1 4 1 6 13 Detach 25 | . . . . . . 3 . 2 1 . . . . 1 . . 1 . 1 . . . . 4 1 2 9 Swap 21 | . . . . 2 8 1 . . 2 1 . . . 1 . . . . 1 2 . . . 3 . . . Drop 108 | 2 . . . 2 12 13 1 3 6 2 . . . . . . 6 . 2 3 3 4 . 7 4 3 35 Fire 126 | . . . . . 62 16 . . 1 . . . . . . . . . . . . . 3 3 . . 41 Melee 381 | . . . . . 8 57 . 13 12 2 3 20 11 18 1 10 8 10 5 28 7 14 5 43 12 29 65 Ram . | . . . . . . . . . . . . . . . . . . . . . . . . . . . . Kick . | . . . . . . . . . . . . . . . . . . . . . . . . . . . . Crush 1 | . . . . . 1 . . . . . . . . . . . . . . . . . . . . . . Escape Stasis 29 | . . . . . . . . . 8 . . . . . . . . . . 6 . . . . . 15 . Rewire 28 | . . . . . . . . . . . . . . . 7 . . . . 21 . . . . . . . Trap . | . . . . . . . . . . . . . . . . . . . . . . . . . . . . Miscellaneous . | . . . . . . . . . . . . . . . . . . . . . . . . . . . . Route ------- -11/Scrapyard -10/Materials -10/Mines (discovered 2 exits: [*Mat] / *Exi) -10/Exiles (discovered 2 exits: *Min x2) -9/Mines -8/Materials (discovered 3 exits: *Fac x3) -7/Factory (discovered 4 exits: *Fac / *Sto / *Low x2) -7/Waste -7/Factory (discovered 4 exits: *Fac x4) -6/Factory (discovered 3 exits: *Fac / *Low x2) -6/Lower Caves -6/Lower Caves (discovered 2 exits: *Fac / *Dat) -6/Data Miner -5/Proximity Caves -5/Factory (discovered 2 exits: *Upp x2) -5/Upper Caves -5/Upper Caves (discovered 2 exits: *Fac / *War) -5/Warlord -4/Proximity Caves -4/Factory (discovered 3 exits: *Res / *Ext / Arm) -4/Extension (discovered 2 exits: *Res / *Cet) -4/Cetus (discovered 2 exits: *Res / *Arc) -4/Archives (discovered 3 exits: *Res / *Hub x2) -4/Hub_04(d) (discovered 4 exits: *Res x4) -3/Research (discovered 3 exits: *Res x3) -2/Research (discovered 3 exits: *Acc x3) -1/Access -1/Command (discovered 2 exits: Sur x2) History --------- Turn | Location | Event 6 | -11/Scrapyard | Discovered new exit (range 16) 50 | -11/Scrapyard | Entered Materials 75 | -10/Materials | Discovered new exit (range 10) 80 | -10/Materials | Entered Mines 171 | -10/Mines | Discovered new exit (range 9) 317 | -10/Mines | Build established: Mutant 378 | -10/Mines | Deemed a non-threat by the Exiles lab entrance 378 | -10/Mines | Discovered new exit (range 5) 380 | -10/Mines | Entered Exiles 381 | -10/Exiles | Identified exit to Mines 393 | -10/Exiles | Met 8R-AWN 409 | -10/Exiles | Met EX-HEX 423 | -10/Exiles | Met EX-BIN 429 | -10/Exiles | Aligned with FarCom system 430 | -10/Exiles | Given EX-Vault access code 442 | -10/Exiles | Opened EX-Vault 445 | -10/Exiles | Found Modified TNC 456 | -10/Exiles | Warned to stay clear of 0b10 Research branches 472 | -10/Exiles | Learned location of Zion (-7) 493 | -10/Exiles | Left Exiles lab with Modified TNC 493 | -10/Exiles | Entered Mines 503 | -9/Mines | Received a Rocket Launcher from a helpful Derelict 597 | -9/Mines | Learned 8 Materials zone layouts 602 | -9/Mines | Discovered new exit (range 5) 631 | -9/Mines | Entered Materials 631 | -8/Materials | Evolved 4 slots: Propulsion x2, Utility x2 632 | -8/Materials | Identified exit to Factory 1721 | -8/Materials | Entered Factory 1721 | -7/Factory | Evolved 2 slots: Propulsion x1, Utility x1 1896 | -7/Factory | Discovered new exit (range 10) 1997 | -7/Factory | Discovered new exit (range 15) 2012 | -7/Factory | Identified exit to Storage 2012 | -7/Factory | Identified exit to Lower Caves 2110 | -7/Factory | Fabricated Hacking Suite? 2163 | -7/Factory | Fabricated Hacking Suite? 2190 | -7/Factory | Build established: Hacker-Scout 2457 | -7/Factory | Fabricated Cld. VTOL Module? 2549 | -7/Factory | Build established: Hacker-Sprinter 2874 | -7/Factory | Fabricated Cld. VTOL Module? 2898 | -7/Factory | Fabricated Cld. VTOL Module? 3068 | -7/Factory | Manually triggered Chute Trap 3068 | -7/Factory | Sucked down chute 3068 | -7/Factory | Entered Waste 3071 | -7/Waste | Spotted C-40 Crusher 3071 | -7/Waste | Spotted C-40 Crusher 3074 | -7/Waste | Spotted C-40 Crusher 3092 | -7/Waste | Spotted C-40 Crusher 3093 | -7/Waste | Spotted C-40 Crusher 3097 | -7/Waste | Spotted C-40 Crusher 3105 | -7/Waste | Crushed by Compactor (1 part destroyed, 1 dropped) 3107 | -7/Waste | Discovered new exit (range 11) 3112 | -7/Waste | Entered Factory 3210 | -7/Factory | Discovered new exit (range 14) 3217 | -7/Factory | Identified exit to Factory 3252 | -7/Factory | Fabricated Cld. VTOL Module (x1) 3279 | -7/Factory | Entered another Factory area 3279 | -6/Factory | Evolved 2 slots: Utility x2 3324 | -6/Factory | Repaired Lgt. Deuterium Engine 3395 | -6/Factory | Identified exit to Lower Caves 3482 | -6/Factory | Fabricated Imp. Hacking Suite? 3530 | -6/Factory | Discovered new exit (range 5) 3532 | -6/Factory | Fabricated Cld. VTOL Module? 3659 | -6/Factory | Entered Lower Caves 3739 | -6/Lower Caves | Learned Factory stockpile data 3801 | -6/Lower Caves | Learned Factory stockpile data 3826 | -6/Lower Caves | Discovered new exit (range 15) 3831 | -6/Lower Caves | Identified exit to Lower Caves 3835 | -6/Lower Caves | Entered another Lower Caves area 3840 | -6/Lower Caves | Discovered new exit (range 13) 3881 | -6/Lower Caves | Attracted the attention of an 0b10 checkpoint 3925 | -6/Lower Caves | Discovered new exit (range 6) 3926 | -6/Lower Caves | Identified exit to Data Miner 3926 | -6/Lower Caves | Entered Data Miner 3927 | -6/Data Miner | Discovered new exit (range 6) 3932 | -6/Data Miner | Met Data Miner 3936 | -6/Data Miner | Learned location of Section 7 (-2) 3936 | -6/Data Miner | Acquired the access code to Warlord's prototype stash 3939 | -6/Data Miner | Received God Mode back door access code from Data Miner 3952 | -6/Data Miner | Interfaced with the Data Conduit 4030 | -6/Data Miner | Identified exit to Proximity Caves 4030 | -6/Data Miner | Entered Proximity Caves 4097 | -5/Proximity Caves | Learned Factory emergency access door positions 4180 | -5/Proximity Caves | Spotted B-75 Beast 4217 | -5/Proximity Caves | Learned Factory terminal intel 4227 | -5/Proximity Caves | Discovered new exit (range 3) 4227 | -5/Proximity Caves | Identified exit to Factory 4227 | -5/Proximity Caves | Entered Factory 4227 | -5/Factory | Evolved 2 slots: Propulsion x1, Utility x1 4228 | -5/Factory | Identified exit to Upper Caves 4231 | -5/Factory | Loaded intel: 306 machine locations 4232 | -5/Factory | Loaded intel: 26 terminal locations 4453 | -5/Factory | Fabricated Cld. VTOL Module (x1) 4495 | -5/Factory | Repaired Cld. VTOL Module? 4561 | -5/Factory | Entered Upper Caves 4575 | -5/Upper Caves | A Commander dispatched an escort 4576 | -5/Upper Caves | Learned Extension stockpile data 4576 | -5/Upper Caves | Learned Research emergency access door positions 4657 | -5/Upper Caves | Attacked by a delusional Derelict stockpiling Unaware 4689 | -5/Upper Caves | Learned Factory stockpile data 4708 | -5/Upper Caves | Encountered a Warlord checkpoint 4708 | -5/Upper Caves | Identified exit to Upper Caves 4956 | -5/Upper Caves | Entered another Upper Caves area 4956 | -5/Upper Caves | Accompanied by 6 allies 4957 | -5/Upper Caves | Commander's escort returned to base 4957 | -5/Upper Caves | Commander's escort returned to base 4957 | -5/Upper Caves | Commander's escort returned to base 4960 | -5/Upper Caves | Discovered new exit (range 9) 5204 | -5/Upper Caves | Discovered new exit (range 6) 5205 | -5/Upper Caves | Identified exit to Warlord 5205 | -5/Upper Caves | Entered Warlord 5213 | -5/Warlord | Discovered new exit (range 14) 5293 | -5/Warlord | Received a Watcher feed algorithm from an ecstatic Tinkerer 5303 | -5/Warlord | Visited the Vortex Lab 5305 | -5/Warlord | Found Prototype Energy Cannon 5306 | -5/Warlord | Found Prototype Energy Cannon 5306 | -5/Warlord | Identified Vortex Driver (x2) 5314 | -5/Warlord | Warlord's base attacked by MAIN.C 5318 | -5/Warlord | Found Prototype Launcher 5318 | -5/Warlord | Identified Vortex Catalyst Activator 5338 | -5/Warlord | Met Warlord 5341 | -5/Warlord | Opened Warlord's prototype stash 5343 | -5/Warlord | Found Prototype Hackware 5343 | -5/Warlord | Identified System Mapper 5664 | -5/Warlord | Warlord forces counterattacked 5668 | -5/Warlord | Build established: Wizard-Sprinter 5715 | -5/Warlord | Identified exit to Proximity Caves 5716 | -5/Warlord | Entered Proximity Caves 6120 | -4/Proximity Caves | Discovered new exit (range 11) 6122 | -4/Proximity Caves | Identified exit to Factory 6122 | -4/Proximity Caves | Entered Factory 6122 | -4/Factory | Evolved 2 slots: Utility x2 6123 | -4/Factory | Identified exit to Extension 6123 | -4/Factory | Identified exit to Armory 6125 | -4/Factory | Loaded intel: 271 machine locations 6136 | -4/Factory | Discovered new exit (range 12) 6197 | -4/Factory | Fabricated Lgt. Antimatter Reactor (x2) 6203 | -4/Factory | Entered Extension 6204 | -4/Extension | Loaded intel: 33 machine locations 6317 | -4/Extension | Rescued a captive Derelict 6318 | -4/Extension | Rescued a captive Derelict 6319 | -4/Extension | Central database locked down 6321 | -4/Extension | Rescued a captive Derelict 6324 | -4/Extension | Rescued a captive Derelict 6329 | -4/Extension | Lost 3 allies 6343 | -4/Extension | Rescued a captive Derelict 6387 | -4/Extension | Rescued A7 6439 | -4/Extension | Spotted B-86 Titan 6440 | -4/Extension | Spotted B-86 Titan 6475 | -4/Extension | Lost 6 allies 6546 | -4/Extension | Rescued a captive Derelict 6582 | -4/Extension | Build established: Wizard-Scout 6618 | -4/Extension | Rescued a captive Derelict 6618 | -4/Extension | Rescued a captive Derelict 6635 | -4/Extension | Discovered new exit (range 10) 6635 | -4/Extension | Discovered new exit (range 6) 6650 | -4/Extension | Identified exit to Cetus 6703 | -4/Extension | First assault squad dispatched 6703 | -4/Extension | Entered Cetus 6703 | -4/Cetus | Accompanied by 9 allies (A7) 6704 | -4/Cetus | Loaded intel: 24 machine locations 6706 | -4/Cetus | Spotted Cetus Guard 6706 | -4/Cetus | Spotted Cetus Guard 6707 | -4/Cetus | Spotted Cetus Guard 6722 | -4/Cetus | Acquired a Cetus Manufacturing Module code from A7 6724 | -4/Cetus | Allies destroyed Cetus Guard 6728 | -4/Cetus | Allies destroyed Cetus Guard 6728 | -4/Cetus | Allies destroyed Cetus Guard 6733 | -4/Cetus | Extracted ID and sensor layout for unrecognized location from A7's data core 6745 | -4/Cetus | Started Cetus Manufacturing Module 6757 | -4/Cetus | Lost 5 allies 6770 | -4/Cetus | Manufactured an Enhanced Grunt 6795 | -4/Cetus | Manufactured an Enhanced Grunt 6820 | -4/Cetus | Manufactured an Enhanced Grunt 6845 | -4/Cetus | Manufactured an Enhanced Grunt 6870 | -4/Cetus | Manufactured an Enhanced Grunt 6898 | -4/Cetus | Found a strange terminal 6902 | -4/Cetus | Discovered new exit (range 16) 6926 | -4/Cetus | Spotted Cetus Guard 6926 | -4/Cetus | Spotted Cetus Guard 6976 | -4/Cetus | Discovered new exit (range 15) 6978 | -4/Cetus | Met Revision 17 7012 | -4/Cetus | Entered Archives 7012 | -4/Archives | Accompanied by 9 allies 7013 | -4/Archives | Loaded intel: 8 machine locations 7047 | -4/Archives | Unable to access archive contents 7048 | -4/Archives | Discovered new exit (range 15) 7049 | -4/Archives | Unable to access archive contents 7050 | -4/Archives | Discovered new exit (range 14) 7051 | -4/Archives | Unable to access archive contents 7052 | -4/Archives | Discovered new exit (range 15) 7053 | -4/Archives | Unable to access archive contents 7241 | -4/Archives | Entered Hub_04(d) 7241 | -4/Hub_04(d) | Accompanied by 7 allies 7242 | -4/Hub_04(d) | Loaded intel: 81 machine locations 7256 | -4/Hub_04(d) | Identified exit to Research 7344 | -4/Hub_04(d) | Network Hub disabled 7346 | -4/Hub_04(d) | Entered Research 7346 | -3/Research | Accompanied by 2 allies 7346 | -3/Research | Evolved 2 slots: Power x1, Propulsion x1 7348 | -3/Research | Loaded intel: 107 machine locations 7351 | -3/Research | Identified exit to Research 7371 | -3/Research | Lost 3 allies 7474 | -3/Research | Build established: Wizard-Sprinter 7480 | -3/Research | Fabricated Nuclear Pulse Array? 7532 | -3/Research | Fabricated Exp. Propulsion Shielding? 7546 | -3/Research | Revision forces began assault on 0b10 7595 | -3/Research | Met up with Revision 17++ 8046 | -3/Research | Research terminal network offline 8055 | -3/Research | Intercept squad dispatched 8221 | -3/Research | Fabricated Cld. VTOL Module (x1) 8255 | -3/Research | Spotted Executioner 8296 | -3/Research | Found Exp. Core Analyzer 8568 | -3/Research | Intercept squad dispatched 8580 | -3/Research | Spotted Tracker 8617 | -3/Research | Entered another Research area 8617 | -2/Research | Warlord forces began assault on 0b10 8617 | -2/Research | Evolved 2 slots: Utility x2 8618 | -2/Research | Loaded intel: 102 machine locations 8643 | -2/Research | Lost 4 allies 8647 | -2/Research | Repaired Exp. Propulsion Shielding 8684 | -2/Research | Repaired Centrium Medium Armor Plating 8696 | -2/Research | Identified exit to Access 8727 | -2/Research | Research machine network offline 8751 | -2/Research | Met up with Warlord 8790 | -2/Research | Identified exit to Garrison 8929 | -2/Research | Entered Access 8929 | -1/Access | Evolved 2 slots: Propulsion x1, Utility x1 8930 | -1/Access | Loaded intel: 113 machine locations 8985 | -1/Access | Garrison activated, responded to threat 9039 | -1/Access | Lost 6 allies 9179 | -1/Access | Search patrols dispatched 9302 | -1/Access | Fabricated Exp. Melee Analysis Suite (x1) 9340 | -1/Access | Fabricated Femtoactuators (x1) 9356 | -1/Access | Discovered new exit (range 7) 9375 | -1/Access | Entered Command 9376 | -1/Command | Loaded intel: 61 machine locations 9413 | -1/Command | Disengaged cave seal 9441 | -1/Command | Disengaged cave seal 9441 | -1/Command | Derelicts emerged from the dark tunnel 9497 | -1/Command | Welcomed Warlord to Command 9508 | -1/Command | Spotted M Guard 9508 | -1/Command | Spotted M Guard 9514 | -1/Command | Spotted Combat Programmer 9520 | -1/Command | Destroyed Combat Programmer 9532 | -1/Command | Warlord commented on Warlord statues 9540 | -1/Command | All MAIN.C guards destroyed 9544 | -1/Command | Murdered 6 allies 9558 | -1/Command | Lost 3 allies 9622 | -1/Command | Repaired Exp. Propulsion Shielding? 9629 | -1/Command | Spotted B-99 Colossus 9629 | -1/Command | Spotted Alpha 7 9630 | -1/Command | Spotted Striker 9630 | -1/Command | Spotted Executioner 9630 | -1/Command | Spotted Striker 9630 | -1/Command | Spotted Executioner 9630 | -1/Command | Spotted Alpha 7 9654 | -1/Command | Destroyed Striker 9686 | -1/Command | Destroyed B-99 Colossus 9709 | -1/Command | Lost 4 parts (1p3u) 9716 | -1/Command | Lost 8 allies 9760 | -1/Command | Spotted B-99 Colossus 9859 | -1/Command | Found Gamma Bomb Array 9919 | -1/Command | P-80 Master assimilated allied HH-O92(i) 9921 | -1/Command | Spotted UP-958(L) 9931 | -1/Command | Build established: Machinist-Sprinter 10375 | -1/Command | Met MAIN.C 10390 | -1/Command | Warlord shut down involuntarily 10447 | -1/Command | Core integrity fell below 50% 10452 | -1/Command | Destroyed MAIN.C Shell 10455 | -1/Command | MAIN.C activated Command garrisons 10456 | -1/Command | Surrendered to MAIN.C 10456 | -1/Command | Loaded intel: 56 machine locations 10456 | -1/Command | Loaded intel: 98 trap records 10456 | -1/Command | Identified exit to Surface 10456 | -1/Command | Discovered exit to Surface (range 37) 10456 | -1/Command | Discovered exit to Surface (range 85) 10486 | -1/Command | Lost 17 parts (2p4n9u2w) 10497 | -1/Command | Found Zero-point Reactor 10513 | -1/Command | Found Prototype Energy Cannon 10513 | -1/Command | Identified Null Cannon 10527 | -1/Command | Found Exp. Phase Shifter 10529 | -1/Command | Found Beam Splitter 10532 | -1/Command | Found Exp. Phase Shifter 10535 | -1/Command | Found Prototype Device 10535 | -1/Command | Identified Exp. System Purifier 10554 | -1/Command | Found Vortex Chain Reactor 10596 | -1/Command | MAIN.C activated Command garrisons 10636 | -1/Command | Unknown forces attacked Command 10636 | -1/Command | Spotted EQ-000 10636 | -1/Command | Spotted EQ-004 10636 | -1/Command | Spotted EQ-001 10642 | -1/Command | Spotted EQ-003 10643 | -1/Command | Spotted EQ-006 10654 | -1/Command | Core integrity fell below 20% 10679 | -1/Command | System corruption reached 10% 10679 | -1/Command | Spotted EQ-002 10688 | -1/Command | Destroyed by EQ-000 with Nova Cannon Last Messages --------------- 10670_ Slug penetrates Reinforced Barrier. 10671_ Acquired 14 matter. 10671_ Penetrated by Slug. 10671_ Slug penetrates EQ-004. 10672_ Penetrated by Slug. 10672_ Beam Splitter destroyed. 10673_ Slug penetrates Reinforced Barrier. 10674_ Acquired 8 matter. 10674_ Penetrated by Slug. 10674_ Swarm Drone destroyed. 10676_ Femtoactuators destroyed. 10678_ Penetrated by Slug. 10678_ Slug penetrates Wall. 10679_ Penetrated by Slug. 10679_ Knocked back. 10681_ Penetrated by Slug. 10684_ Slug penetrates Reinforced Barrier. 10686_ Slug penetrates Wall. 10688_ Knocked back. 10688_ Penetrated by Slug. Map ----- +----------------------------------------------------+ | ##### #???????????# #?????????????????????? | | #???## ##???????????# #?????????????????????? | | ?????# #????????????# #?????????????????????? | | ?????# #???#####????#^^ ^ #?????????????????????? | | ##???# #???# #????#^ ^^ #?????????????????????? | | ##### ##### < #????# #?????????????????????? | | #????# #?????????????????????? | | #????# #?????????????????????? | | ################????# #?????????????????????? | | ##????################ #?????????????????????? | | #?????#"""""""""""# # #?????????????????????? | | ####### """"T"""" # *[ #?????????????????????? | | !%%=[ #?????????????????????? | | !!R]!!*% %#?##################### | | =!*% ! %#?#???????????????????? | | % % #?#?################### | | ;?#?#""""""" """ | | % #?#?#"" " | | ! #?#?#""""" " | | #?#?#"""" """ % | | #?#?#" " %" %% % | | ############# #?#?#"" "" $ | | ############# #?#?#" " % | | # # ! #?#?# " % % | | # # ! %"" " % #?#?#% % % | | # # % """" @ #?#?#* % | | # # """" #?#?# % % % % % " | | # # """" #?#?# % %%% """" | | # # Q #?#?# % % % """"""" | | # # nQQ###?# % " " | | # "" # ;#### " " " | | #"""" #= n % %" " """" | | #"""" /w! % =%! % """ " " "" | | # "" #% " " " " | | + # ############## """""" "" " | | # #############????#?# " """ " """"" | | ####+########?# #????#?# """ " " " | | #????????# #????#?################### | | #????????# #????#???????????????????? | | ###+########### #????##################### | | # ####+#########?????????????????????? | | # #??# #??#| #?????????????????????? | | # #??# #??# #?????????????????????? | | # #??# #### #?????????????????????? | | # #??# + % #?????????????????????? | | # #??# #### #?????????????????????? | | ###############??# #??# #?????????????????????? | | #???# #??# !#?????????????????????? | | #???# #??# #?????????????????????? | | ######### ##### #??# ] #?????????????????????? | +----------------------------------------------------+ Best States ------------- Heat Dissipation 52 Energy Generation 45 Energy Capacity 440 Matter Stores 300 Matter Capacity 300 Sight Range 16 Robot Scan Range 16 Terrain Scan Density 10 Power Amplification 20 Additional Mass Support 9 Armor Coverage 450 Resistance: KI 20 Resistance: TH 75 Propulsion Shielding 90 Melee Speed Boost 50 Phase Shifting 20 Evasion (%) 80 Melee Accuracy 26 Target Analysis 12 Core Analysis 8 Armor Integrity Analysis 40 Recoil Reduction 2 Force Boost 30 Offensive Hacking 78 Defensive Hacking 22 Authchip Count 3 Item Schematics ----------------- Hacking Suite | -7/Factory | Hacked Imp. Cesium-ion Thruster | -7/Factory | Scanalyzed Cld. VTOL Module | -7/Factory | Hacked Nuclear Pulse Array | -7/Factory | Hacked Imp. Hacking Suite | -7/Factory | Hacked Lgt. Antimatter Reactor | -6/Factory | Hacked Combat Drone Bay | -6/Data Miner | Free Lgt. Regenerative Plating | -6/Data Miner | Free Cld. Gravmag System | -6/Data Miner | Free Imp. Matter Compressor | -6/Data Miner | Free Enh. Coil Gun | -6/Data Miner | Free Impulse Thruster | -6/Data Miner | Free Quantum Capacitor | -6/Data Miner | Free Dispersion Rifle | -6/Data Miner | Free KE Penetrator | -6/Data Miner | Free Nova Cannon | -6/Data Miner | Free Imp. Force Field | -6/Data Miner | Free Lgt. Quantum Reactor | -4/Extension | Hacked Adv. Melee Analysis Suite | -4/Extension | Hacked Exp. Utility Shielding | -4/Extension | Hacked Exp. Melee Analysis Suite | -3/Research | Hacked Nanosword | -3/Research | Hacked Centrium Medium Armor Plating | -3/Research | Hacked Exp. Propulsion Shielding | -3/Research | Hacked Adv. Force Booster | -3/Research | Hacked Femtoactuators | -2/Research | Hacked Robot Schematics ------------------ R-10 Processor | -6/Data Miner | Free G-50 Soldier | -6/Data Miner | Free E-15 Imp | -6/Data Miner | Free Y-64 Sentinel | -6/Data Miner | Free Fabricated ------------ Hacking Suite | x1 | -7/Factory Hacking Suite | x1 | -7/Factory Cld. VTOL Module | x1 | -7/Factory Cld. VTOL Module | x1 | -7/Factory Cld. VTOL Module | x1 | -7/Factory Cld. VTOL Module | x1 | -7/Factory Imp. Hacking Suite | x1 | -6/Factory Cld. VTOL Module | x1 | -6/Factory Cld. VTOL Module | x1 | -5/Factory Lgt. Antimatter Reactor | x2 | -4/Factory Nuclear Pulse Array | x1 | -3/Research | Authchip Exp. Propulsion Shielding | x1 | -3/Research Cld. VTOL Module | x1 | -3/Research Exp. Melee Analysis Suite | x1 | -1/Access | Authchip Femtoactuators | x1 | -1/Access | Authchip Alien Tech Used ----------------- None Achievements -------------- Corridor Of Doom Challenges ------------ None Game ------ Seed MultinovaRestorationMace Manual? 0 Play Time 03:18:21 Cumulative 143.4 hours Start 2025.03.19 @ 19:13:49 End 2025.03.20 @ 11:12:00 Sessions 3 Manual Loads 0 Difficulty Rogue Special Mode None Game No. 99 Rogue 99 Adventurer 0 Explorer 0 Win Type - Total 7 Types 5/0/1/1/0/0/0/0/0 Lore% 70 Gallery% 65 Achievement% 62 Wizard Run 0 Options --------- Layout 1 ASCII 0 Keyboard 0 Movement Mouse Keybinds 0 Fullscreen 2 Font 24/Smallcaps Map View 50x35 Zoom Use 0% Tactical HUD 1 Map Filters NONE Filters NONE Steam 1 RUN: 3a03ebb3-f461-41d4-8bad-f37736e2ee25